bitfinex-derivatives/quotes_BTCF0:USTF0_20250729
["timestamp","ask_amount","ask_price","bid_price","bid_amount"]
[1753782041043,0.95581647,118900.0,118890.0,0.65362526]
[1753782041439,0.95581647,118900.0,118890.0,0.4434217]
[1753782041840,0.97581647,118900.0,118890.0,0.4434217]
[1753782047453,0.97581647,118900.0,118890.0,0.65362526]
[1753782047845,0.55540935,118900.0,118890.0,0.86382882]
[1753782048045,0.55540935,118900.0,118890.0,0.65972526]
[1753782048245,0.55540935,118900.0,118890.0,0.4495217]
[1753782048451,0.55540935,118900.0,118890.0,0.65972526]
[1753782049552,0.49744935,118900.0,118890.0,0.65362526]
[1753782049753,0.49744935,118900.0,118890.0,0.65972526]
[1753782049754,0.54798935,118900.0,118890.0,0.65972526]
[1753782051851,0.54798935,118900.0,118890.0,0.65362526]
[1753782053350,0.75819291,118900.0,118890.0,0.65362526]
[1753782053947,0.96839647,118900.0,118890.0,0.4434217]
[1753782054153,0.96839647,118900.0,118890.0,1.1107017]
[1753782055049,0.96839647,118900.0,118890.0,1.32090526]
[1753782055254,0.87806647,118900.0,118890.0,1.30861526]
[1753782056154,0.73734647,118900.0,118890.0,1.30861526]
[1753782058159,0.96809647,118900.0,118890.0,1.30861526]
[1753782060158,0.54768935,118900.0,118890.0,1.30861526]
[1753782060458,0.75789291,118900.0,118890.0,1.30861526]
[1753782060853,0.75789291,118900.0,118890.0,1.0984117]
[1753782061055,0.75789291,118900.0,118890.0,1.30861526]
[1753782061254,0.96809647,118900.0,118890.0,1.30861526]
[1753782062464,0.75789291,118900.0,118890.0,1.30861526]
[1753782065564,0.96809647,118900.0,118890.0,1.30861526]
[1753782067159,0.75789291,118900.0,118890.0,1.30861526]
[1753782069062,0.54768935,118900.0,118890.0,1.30861526]
[1753782069268,0.96809647,118900.0,118890.0,1.30861526]
[1753782069566,0.75789291,118900.0,118890.0,1.30861526]
[1753782070965,0.7588172,118900.0,118890.0,1.30861526]
[1753782073570,0.7588172,118900.0,118890.0,1.0984117]
[1753782073871,0.7588172,118900.0,118890.0,1.30861526]
[1753782074064,0.96902076,118900.0,118890.0,1.30861526]
[1753782074268,0.96902076,118900.0,118890.0,1.0984117]
[1753782074476,0.96902076,118900.0,118890.0,1.30861526]
[1753782074767,0.7588172,118900.0,118890.0,1.30861526]
[1753782075460,0.54861364,118900.0,118890.0,1.30861526]
[1753782075660,0.7588172,118900.0,118890.0,1.31315526]
[1753782076661,0.31786364,118900.0,118890.0,1.31315526]
[1753782076966,0.22975364,118900.0,118890.0,1.31315526]
[1753782077163,0.32975364,118900.0,118890.0,1.31315526]
[1753782077367,0.22975364,118900.0,118890.0,1.31315526]
[1753782077765,0.33975364,118900.0,118890.0,1.31315526]
[1753782078964,0.22975364,118900.0,118890.0,1.31315526]
[1753782079365,0.34975364,118900.0,118890.0,1.31315526]
[1753782080066,0.43202364,118900.0,118890.0,1.31315526]
[1753782080266,0.6422272,118900.0,118890.0,1.31315526]
[1753782080569,0.6717272,118900.0,118890.0,1.31315526]
[1753782080772,0.7125772,118900.0,118890.0,1.31315526]
[1753782080969,0.7410172,118900.0,118890.0,1.31315526]
[1753782083370,0.53081364,118900.0,118890.0,1.31315526]
[1753782085469,0.53081364,118900.0,118890.0,1.1029517]
[1753782085772,0.53081364,118900.0,118890.0,1.31315526]
[1753782087768,0.18153614,118900.0,118890.0,1.52335882]
[1753782087975,0.13964614,118900.0,118890.0,1.52335882]
[1753782088473,0.01964614,118900.0,118890.0,1.52335882]
[1753782091474,0.01964614,118900.0,118890.0,1.54068407]
[1753782093975,0.06153614,118900.0,118890.0,1.54068407]
[1753782102183,0.06153614,118900.0,118890.0,1.12027695]
[1753782102381,0.06153614,118900.0,118890.0,1.54068407]
[1753782102581,0.06153614,118900.0,118890.0,1.12027695]
[1753782102782,0.06153614,118900.0,118890.0,1.54068407]
[1753782105387,0.01964614,118900.0,118890.0,1.54068407]
[1753782105588,0.06287614,118900.0,118890.0,1.54068407]
[1753782105783,0.01964614,118900.0,118890.0,1.54068407]
[1753782105986,0.06287614,118900.0,118890.0,1.54068407]
[1753782106590,0.01464614,118900.0,118890.0,1.54068407]
[1753782106887,0.44160797,118930.0,118920.0,0.1729993]
[1753782107088,0.70135606,118930.0,118920.0,1.05012286]
[1753782107287,0.83225606,118930.0,118920.0,1.05012286]
[1753782108990,0.83525606,118930.0,118920.0,1.05012286]
[1753782111190,0.83825606,118930.0,118920.0,1.05012286]
[1753782111684,0.6280525,118930.0,118920.0,1.05012286]
[1753782112088,0.83825606,118930.0,118920.0,1.05012286]
[1753782116592,0.5019148,118930.0,118920.0,1.26032642]
[1753782116789,0.33373,118930.0,118920.0,1.52623642]
[1753782117493,0.16813547,118930.0,118920.0,1.52623642]
[1753782117683,0.16813547,118930.0,118920.0,1.73643998]
[1753782117684,0.04923,118930.0,118920.0,1.73643998]
[1753782117884,0.006,118930.0,118920.0,1.73643998]
[1753782118090,0.006,118930.0,118920.0,1.52623642]
[1753782118693,0.02340637,118930.0,118920.0,1.52623642]
[1753782118897,0.02340637,118930.0,118920.0,1.73643998]
[1753782119292,0.02140637,118930.0,118920.0,2.89971998]
[1753782119888,0.02140637,118930.0,118920.0,2.23279998]
[1753782120088,0.01839637,118930.0,118920.0,3.06777598]
[1753782120996,0.01739637,118930.0,118920.0,3.06777598]
[1753782121992,0.001,118930.0,118920.0,3.06777598]
[1753782122796,0.001,118930.0,118920.0,2.99732528]
[1753782124000,0.001,118930.0,118920.0,3.43882528]
[1753782126604,0.001,118930.0,118920.0,3.27064928]
[1753782126810,0.001,118930.0,118920.0,3.43882528]
[1753782127612,0.001,118930.0,118920.0,2.8786653]
[1753782127806,0.001,118930.0,118920.0,3.43882528]
[1753782128610,0.001,118930.0,118920.0,3.27064928]
[1753782132215,0.02029859,118930.0,118920.0,3.27064928]
[1753782133214,0.06352859,118930.0,118920.0,3.27064928]
[1753782143215,0.24077859,118930.0,118920.0,2.32075929]
[1753782143420,0.24077859,118930.0,118920.0,2.98727929]
[1753782144821,0.24077859,118930.0,118920.0,3.12742932]
[1753782147022,0.24077859,118930.0,118920.0,2.98735238]
[1753782147522,0.24077859,118930.0,118920.0,3.00425678]
[1753782147718,0.24077859,118930.0,118920.0,2.56275678]
[1753782152632,0.24077859,118930.0,118920.0,2.2826037]
[1753782152930,0.24077859,118930.0,118920.0,2.56275678]
[1753782153125,0.24077859,118930.0,118920.0,2.56276237]
[1753782157032,0.24077859,118930.0,118920.0,1.89624237]
[1753782157236,0.36077859,118930.0,118920.0,1.61608929]
[1753782157436,0.80910677,118930.0,118920.0,1.61127929]
[1753782157637,0.52895369,118930.0,118920.0,2.27779929]
[1753782158637,0.52895369,118930.0,118920.0,1.61127929]
[1753782158936,1.22728277,118930.0,118920.0,2.27779929]
[1753782159135,0.97728277,118930.0,118920.0,2.27779929]
[1753782159738,0.80910677,118930.0,118920.0,2.27779929]
[1753782159938,0.81756754,118930.0,118920.0,2.27779929]
[1753782160436,0.80910677,118930.0,118920.0,2.27779929]
[1753782161138,0.52895369,118930.0,118920.0,2.27779929]
[1753782162438,0.52895369,118930.0,118920.0,2.01489929]
[1753782164245,0.35981859,118930.0,118920.0,2.29505237]
[1753782164540,0.52799369,118930.0,118920.0,2.29505237]
[1753782168342,0.52799369,118930.0,118920.0,2.55795237]
[1753782170643,0.52799369,118930.0,118920.0,2.27779929]
[1753782170845,0.52799369,118930.0,118920.0,2.55795237]
[1753782174643,0.52799369,118930.0,118920.0,2.54104238]
[1753782174945,0.52799369,118930.0,118920.0,2.2608893]
[1753782175449,0.52799369,118930.0,118920.0,1.9979893]
[1753782178949,0.80814677,118930.0,118920.0,1.9979893]
[1753782179542,0.80814677,118930.0,118920.0,1.3314693]
[1753782179743,0.80814677,118930.0,118920.0,1.9981093]
[1753782184859,0.80814677,118930.0,118920.0,0.8348293]
[1753782188765,0.73819605,118930.0,118920.0,1.04503166]
[1753782189062,0.73819605,118930.0,118920.0,1.30793166]
[1753782191664,0.52799369,118930.0,118920.0,1.30793166]
[1753782191863,0.73819605,118930.0,118920.0,1.30793166]
[1753782193968,0.52799369,118930.0,118920.0,1.30793166]
[1753782194160,0.73819605,118930.0,118920.0,1.30793166]
[1753782199268,0.73819605,118930.0,118920.0,1.51813402]
[1753782199471,0.73819605,118930.0,118920.0,1.30793166]
[1753782200473,0.73819605,118930.0,118920.0,1.51813402]
[1753782201170,0.73819605,118930.0,118920.0,1.30793166]
[1753782202989,0.02029859,118930.0,118920.0,1.72833638]
[1753782204770,0.02029859,118930.0,118920.0,1.65794116]
[1753782210578,0.02029859,118930.0,118920.0,2.82106116]
[1753782212374,0.02029859,118930.0,118920.0,2.2608493]
[1753782212582,0.02029859,118930.0,118920.0,2.82106116]
[1753782213280,0.05945859,118930.0,118920.0,2.82106116]
[1753782217780,0.02029859,118930.0,118920.0,2.82106116]
[1753782220184,0.05945859,118930.0,118920.0,2.82106116]
[1753782226799,0.05945859,118930.0,118920.0,2.89110775]
[1753782228401,0.02029859,118930.0,118920.0,2.89110775]
[1753782230600,0.02029859,118930.0,118920.0,3.5213662]
[1753782230801,0.02029859,118930.0,118920.0,2.89110775]
[1753782233606,0.02029859,118930.0,118920.0,3.33260775]
[1753782235006,0.05911859,118930.0,118920.0,3.33260775]
[1753782236908,0.05911859,118930.0,118920.0,3.34932939]
[1753782240514,0.05911859,118930.0,118920.0,3.34953341]
[1753782244217,0.03982,118930.0,118920.0,3.34953341]
[1753782245516,0.001,118930.0,118920.0,3.34953341]
[1753782245716,0.03982,118930.0,118920.0,3.34953341]
[1753782249610,0.03982,118930.0,118920.0,3.34989724]
[1753782251119,0.001,118930.0,118920.0,3.34989724]
[1753782251326,0.001,118930.0,118920.0,3.34948167]
[1753782251922,0.03982,118930.0,118920.0,3.34948167]
[1753782253321,0.03982,118930.0,118920.0,3.34951011]
[1753782255026,0.03982,118930.0,118920.0,3.3497023]
[1753782255222,0.001,118930.0,118920.0,3.97996075]
[1753782255523,0.32907939,118980.0,118930.0,0.1681751]
[1753782255524,0.03623,118940.0,118930.0,0.1681751]
[1753782255829,0.51270683,118980.0,118970.0,0.1681185]
[1753782255830,0.2507258,118980.0,118970.0,0.1681185]
[1753782256030,0.39046197,118980.0,118970.0,1.30746465]
[1753782256322,0.67726597,118980.0,118970.0,1.30746465]
[1753782256521,0.34104617,118980.0,118970.0,1.2546508]
[1753782256721,0.22104617,118980.0,118970.0,1.2546508]
[1753782256925,0.34104617,118980.0,118970.0,1.2546508]
[1753782257517,0.34104617,118980.0,118970.0,1.04456465]
[1753782258324,0.34104617,118980.0,118970.0,1.05296948]
[1753782258626,0.34504617,118980.0,118970.0,1.05296948]
[1753782258926,0.17996617,118980.0,118970.0,1.05296948]
[1753782259125,0.22504617,118980.0,118970.0,1.32992456]
[1753782259729,0.22904617,118980.0,118970.0,1.32992456]
[1753782260125,0.22904617,118980.0,118970.0,1.59282456]
[1753782260427,0.22504617,118980.0,118970.0,1.59282456]
[1753782260628,0.22804617,118980.0,118970.0,1.59282456]
[1753782265833,0.20267617,118980.0,118970.0,1.59282456]
[1753782266029,0.22804617,118980.0,118970.0,1.59282456]
[1753782267734,0.19017617,118980.0,118970.0,1.59282456]
[1753782267934,0.22804617,118980.0,118970.0,1.59282456]
[1753782272734,0.02673617,118980.0,118970.0,1.59282456]
[1753782272939,0.06296617,118980.0,118970.0,1.59282456]
[1753782277844,0.06296617,118980.0,118970.0,2.03432456]
[1753782279046,0.10756617,118980.0,118970.0,2.03432456]
[1753782280449,0.20267617,118980.0,118970.0,2.03432456]
[1753782283453,0.20242993,118980.0,118970.0,2.03432456]
[1753782283950,0.16455993,118980.0,118970.0,2.03432456]
[1753782284541,0.09383993,118980.0,118970.0,2.24441071]
[1753782284740,0.06271993,118980.0,118970.0,2.24441071]
[1753782284952,0.06271993,118980.0,118970.0,2.26112545]
[1753782285151,0.06271993,118980.0,118970.0,2.0510393]
[1753782285750,0.02648993,118980.0,118970.0,2.26112545]
[1753782285947,0.06459993,118980.0,118970.0,2.26112545]
[1753782286752,0.06459993,118980.0,118970.0,2.0510393]
[1753782287251,0.10691993,118980.0,118970.0,2.0510393]
[1753782287546,0.13670993,118980.0,118970.0,2.0510393]
[1753782287747,0.19909993,118980.0,118970.0,2.0510393]
[1753782288449,0.19909993,118980.0,118970.0,2.03432456]
[1753782288646,0.22359993,118980.0,118970.0,2.05103008]
[1753782290059,0.2236066,118980.0,118970.0,2.05103008]
[1753782290250,0.20411,118980.0,118970.0,2.05103008]
[1753782291953,0.22360938,118980.0,118970.0,2.05103008]
[1753782293157,0.06460938,118980.0,118970.0,2.26111623]
[1753782294361,0.04511,118980.0,118970.0,2.26111623]
[1753782295558,0.0265085,118980.0,118970.0,2.26111623]
[1753782296156,0.0636185,118980.0,118970.0,2.26111623]
[1753782297960,0.0245085,118980.0,118970.0,2.26111623]
[1753782298463,0.0626185,118980.0,118970.0,2.26111623]
[1753782299562,0.04311,118980.0,118970.0,2.26111623]
[1753782299949,0.03811,118990.0,118980.0,0.2941761]
[1753782300253,0.05762864,118990.0,118980.0,1.62883455]
[1753782300753,0.09994864,118990.0,118980.0,1.62883455]
[1753782300959,0.12973864,118990.0,118980.0,1.62883455]
[1753782301158,0.46239894,118990.0,118980.0,0.4201723]
[1753782301356,0.96694339,118990.0,118980.0,0.2629]
[1753782301558,0.96894339,118990.0,118980.0,0.92886]
[1753782301866,0.96894339,118990.0,118980.0,0.66596]
[1753782302048,0.93159339,118990.0,118970.0,0.8093115]
[1753782302362,0.68307539,118990.0,118980.0,0.66596]
[1753782302658,0.68407539,118990.0,118980.0,0.66596]
[1753782302850,0.80185539,118990.0,118980.0,0.87604615]
[1753782303051,0.3652145,118980.0,118970.0,0.55719595]
[1753782303252,0.70481929,118980.0,118970.0,0.2942435]
[1753782303452,0.70481929,118980.0,118970.0,0.73382893]
[1753782303652,0.48473314,118980.0,118970.0,1.04516475]
[1753782304860,0.48473314,118980.0,118970.0,1.11505069]
[1753782305059,0.48473314,118980.0,118970.0,1.11405069]
[1753782306061,0.48473314,118980.0,118970.0,0.44809069]
[1753782306257,0.38473314,118980.0,118970.0,1.11409069]
[1753782306459,0.49473314,118980.0,118970.0,1.11409069]
[1753782306962,0.38473314,118980.0,118970.0,1.11409069]
[1753782307361,0.47473314,118980.0,118970.0,1.11409069]
[1753782308960,0.38473314,118980.0,118970.0,1.11409069]
[1753782309462,0.48473314,118980.0,118970.0,1.11409069]
[1753782311366,0.48473314,118980.0,118970.0,1.17988491]
[1753782311571,0.38473314,118980.0,118970.0,1.17988491]
[1753782311969,0.48473314,118980.0,118970.0,1.17988491]
[1753782312469,0.48473314,118980.0,118970.0,0.89991282]
[1753782312768,0.48473314,118980.0,118970.0,1.17988491]
[1753782316568,0.38473314,118980.0,118970.0,1.17988491]
[1753782316767,0.21662864,118980.0,118970.0,1.17988491]
[1753782316964,0.17927864,118980.0,118970.0,1.17988491]
[1753782317175,0.05762864,118980.0,118970.0,1.17988491]
[1753782317370,0.17920864,118980.0,118970.0,1.17988491]
[1753782317563,0.21570864,118980.0,118970.0,1.17988491]
[1753782319269,0.21570864,118980.0,118970.0,1.44278491]
[1753782321672,0.17920864,118980.0,118970.0,1.44278491]
[1753782321873,0.01951864,118980.0,118970.0,1.44278491]
[1753782322069,0.05545864,118980.0,118970.0,1.44278491]
[1753782322373,0.01951864,118980.0,118970.0,1.44278491]
[1753782322779,0.05545864,118980.0,118970.0,1.44278491]
[1753782328281,0.01951864,118980.0,118970.0,1.44278491]
[1753782329588,0.05545864,118980.0,118970.0,1.44278491]
[1753782332885,0.12958864,118980.0,118970.0,1.44278491]
[1753782333082,0.21353864,118980.0,118970.0,0.77678491]
[1753782333282,0.21353864,118980.0,118970.0,1.44278491]
[1753782336290,0.21353864,118980.0,118970.0,1.46013275]
[1753782339894,0.21353864,118980.0,118970.0,1.45955341]
[1753782344603,0.21353864,118980.0,118970.0,1.45975957]
[1753782350511,0.21353864,118980.0,118970.0,1.46002842]
[1753782352202,0.21415864,118980.0,118970.0,1.18001633]
[1753782352408,0.21415864,118980.0,118970.0,0.79402842]
[1753782352611,0.32415864,118980.0,118970.0,1.45998842]
[1753782353005,0.32415864,118980.0,118970.0,0.51405633]
[1753782353312,0.32415864,118980.0,118970.0,1.18001633]
[1753782354614,0.32415864,118980.0,118970.0,1.45998842]
[1753782357219,0.32415864,118980.0,118970.0,1.18001633]
[1753782357410,0.32415864,118980.0,118970.0,1.16277282]
[1753782357616,0.49226314,118980.0,118970.0,1.16277282]
[1753782360922,0.49226314,118980.0,118970.0,0.49681282]
[1753782361118,0.49226314,118980.0,118970.0,1.16277282]
[1753782362625,0.77223523,118980.0,118970.0,1.0969786]
[1753782367225,0.94033923,118980.0,118970.0,0.8340786]
[1753782367637,0.77223523,118980.0,118970.0,0.8340786]
[1753782376734,0.70229967,118980.0,118970.0,0.8340786]
[1753782376947,0.9123362,118980.0,118970.0,0.8340786]
[1753782378945,0.49226314,118980.0,118970.0,0.8340786]
[1753782379146,0.9123362,118980.0,118970.0,0.8340786]
[1753782381446,0.91250453,118980.0,118970.0,0.8340786]
[1753782382543,0.1681186,118970.0,118960.0,1.69431513]
[1753782382743,0.7167721,118970.0,118960.0,2.36039513]
[1753782383744,0.50673557,118970.0,118960.0,2.36039513]
[1753782383949,0.7177721,118970.0,118960.0,2.57043166]
[1753782384851,0.50773557,118970.0,118960.0,2.57043166]
[1753782386049,0.50873557,118970.0,118960.0,2.57043166]
[1753782386847,0.50873557,118970.0,118960.0,2.78046819]
[1753782387153,0.47260557,118970.0,118960.0,2.78046819]
[1753782387950,0.50873557,118970.0,118960.0,2.78046819]
[1753782389553,0.50873557,118970.0,118960.0,2.36039513]
[1753782389757,0.50873557,118970.0,118960.0,2.78046819]
[1753782390254,0.7187721,118970.0,118960.0,2.78046819]
[1753782390753,0.7187721,118970.0,118960.0,1.61802819]
[1753782392255,0.7187721,118970.0,118960.0,1.60124346]
[1753782392657,0.7187721,118970.0,118960.0,1.1811704]
[1753782392857,0.7187721,118970.0,118960.0,1.39120693]
[1753782393457,0.7187721,118970.0,118960.0,1.60124346]
[1753782396569,0.50873557,118970.0,118960.0,1.60124346]
[1753782401368,0.7187721,118970.0,118960.0,1.60124346]
[1753782405471,0.05793697,118970.0,118960.0,1.60124346]
[1753782405771,0.02168697,118970.0,118960.0,1.60124346]
[1753782406674,0.02068697,118970.0,118960.0,1.60124346]
[1753782407469,0.01968697,118970.0,118960.0,1.81127999]
[1753782407669,0.03508,118990.0,118980.0,0.1681045]
[1753782407869,0.01978329,118990.0,118980.0,1.51779756]
[1753782408374,0.05486329,118990.0,118980.0,1.51779756]
[1753782408761,0.1548464,118990.0,118980.0,1.37758782]
[1753782409172,0.0548464,118990.0,118980.0,1.37758782]
[1753782409672,0.0558464,118990.0,118980.0,1.37758782]
[1753782410269,0.1558464,118990.0,118980.0,1.37758782]
[1753782410774,0.1568464,118990.0,118980.0,1.37758782]
[1753782411170,0.1962464,118990.0,118980.0,1.37758782]
[1753782411571,0.0962464,118990.0,118980.0,1.37758782]
[1753782412174,0.2062464,118990.0,118980.0,1.37758782]
[1753782413073,0.0962464,118990.0,118980.0,1.37758782]
[1753782413972,0.0568464,118990.0,118980.0,1.37758782]
[1753782414571,0.1568464,118990.0,118980.0,1.37758782]
[1753782414781,0.1962464,118990.0,118980.0,1.37758782]
[1753782415079,0.19620892,118990.0,118980.0,1.37758782]
[1753782415677,0.09620892,118990.0,118980.0,1.37758782]
[1753782416069,0.05680892,118990.0,118980.0,1.37758782]
[1753782422380,0.02172892,118990.0,118980.0,1.37758782]
[1753782422583,0.05680892,118990.0,118980.0,1.37758782]
[1753782430778,0.05680892,118990.0,118980.0,1.51753004]
[1753782434985,0.09811892,118990.0,118980.0,1.51753004]
[1753782435188,0.12562892,118990.0,118980.0,1.51753004]
[1753782435383,0.52823169,118990.0,118980.0,0.64090727]
[1753782435589,0.69632189,118990.0,118980.0,1.30722727]
[1753782436079,0.52823169,118990.0,118980.0,1.51713004]
[1753782436386,0.31832892,118990.0,118980.0,1.51713004]
[1753782436585,0.3541186,118970.0,118960.0,0.2629]
[1753782436786,0.90365306,118970.0,118960.0,0.93006]
[1753782437284,0.69375029,118970.0,118960.0,0.93006]
[1753782437881,0.69375029,118970.0,118960.0,0.93106]
[1753782438076,0.70232834,118970.0,118960.0,0.2639]
[1753782438284,0.69375029,118970.0,118960.0,0.93102]
[1753782438783,0.76393871,118970.0,118960.0,0.93102]
[1753782439090,0.76393871,118970.0,118960.0,1.0991527]
[1753782440590,0.76393871,118970.0,118960.0,0.8362527]
[1753782441993,0.48384752,118970.0,118960.0,0.8362527]
[1753782443196,0.76393871,118970.0,118960.0,0.8362527]
[1753782443588,0.48384752,118970.0,118960.0,0.8362527]
[1753782443788,0.20572892,118970.0,118960.0,1.11634389]
[1753782449600,0.20572892,118970.0,118960.0,1.37924389]
[1753782449796,0.01972892,118970.0,118960.0,1.39659031]
[1753782449993,0.05420892,118970.0,118960.0,1.39659031]
[1753782450300,0.03448,118970.0,118960.0,1.39659031]
[1753782450500,0.03448,118970.0,118960.0,1.37924389]
[1753782450900,0.05413825,118970.0,118960.0,1.37924389]
[1753782455004,0.01965825,118970.0,118960.0,1.37924389]
[1753782455310,0.05413825,118970.0,118960.0,1.37924389]
[1753782455509,0.05413825,118970.0,118960.0,2.54192389]
[1753782456405,0.01965825,118970.0,118960.0,2.54192389]
[1753782457411,0.05413825,118970.0,118960.0,2.54192389]
[1753782461314,0.05413825,118970.0,118960.0,2.98342389]
[1753782462115,0.05413825,118970.0,118960.0,3.00012174]
[1753782463621,0.01965825,118970.0,118960.0,3.28021293]
[1753782465421,0.05510825,118970.0,118960.0,3.28079176]
[1753782465826,0.05510825,118970.0,118960.0,3.00070057]
[1753782466227,0.03545,118970.0,118960.0,3.00070057]
[1753782466428,0.05516144,118970.0,118960.0,3.00070057]
[1753782467331,0.03545,118970.0,118960.0,3.00070057]
[1753782467523,0.05515983,118970.0,118960.0,3.00070057]
[1753782467723,0.03545,118970.0,118960.0,3.00070057]
[1753782472725,0.03545,118970.0,118960.0,3.14051076]
[1753782478232,0.05516992,118970.0,118960.0,3.14051076]
[1753782483034,0.09437992,118970.0,118960.0,3.14051076]
[1753782483336,0.07466,118970.0,118960.0,3.14051076]
[1753782488241,0.03545,118970.0,118960.0,3.14051076]
[1753782488542,0.03545,118970.0,118960.0,3.35046145]
[1753782490143,0.05517388,118970.0,118960.0,3.35046145]
[1753782491847,0.00947388,118970.0,118960.0,3.36960145]
[1753782492052,0.07636388,118970.0,118960.0,3.36960145]
[1753782492240,0.07636388,118970.0,118960.0,3.15965076]
[1753782493347,0.09999388,118970.0,118960.0,3.15965076]
[1753782493548,0.13296388,118970.0,118960.0,2.73974938]
[1753782493737,0.15656388,118970.0,118960.0,3.15965076]
[1753782493937,0.19120388,118970.0,118960.0,3.15965076]
[1753782494445,0.19120388,118970.0,118960.0,3.15881076]
[1753782496650,0.15823388,118970.0,118960.0,3.15881076]
[1753782496852,0.13463388,118970.0,118960.0,3.15881076]
[1753782497753,0.09542388,118970.0,118960.0,3.15881076]
[1753782501052,0.13593388,118970.0,118960.0,3.15881076]
[1753782502655,0.09542388,118970.0,118960.0,3.15881076]
[1753782503347,0.09542388,118970.0,118960.0,3.36876145]
[1753782504060,0.13593388,118970.0,118960.0,3.36876145]
[1753782504348,0.13593388,118970.0,118960.0,3.15881076]
[1753782505358,0.13593388,118970.0,118960.0,3.36876145]
[1753782505556,0.13593388,118970.0,118960.0,3.15881076]
[1753782506263,0.13593388,118970.0,118960.0,3.36876145]
[1753782509256,0.09542388,118970.0,118960.0,3.36876145]
[1753782509560,0.13593388,118970.0,118960.0,3.36876145]
[1753782511251,0.12646,118970.0,118960.0,3.36876145]
[1753782511451,0.06232,118970.0,118960.0,3.36876145]
[1753782511955,0.03464,118970.0,118960.0,3.36876145]
[1753782513661,0.10226,118970.0,118960.0,3.36876145]
[1753782514568,0.10226,118970.0,118960.0,3.36860285]
[1753782514961,0.10226,118970.0,118960.0,3.35148477]
[1753782515160,0.10226,118970.0,118960.0,3.36860285]
[1753782515360,0.1794,118970.0,118960.0,3.15865216]
[1753782515661,0.14643,118970.0,118960.0,3.13951216]
[1753782515867,0.1794,118970.0,118960.0,3.13951216]
[1753782516168,0.19900108,118970.0,118960.0,3.15782216]
[1753782518167,0.19900108,118970.0,118960.0,3.15769584]
[1753782518568,0.19900108,118970.0,118960.0,3.15745688]
[1753782521471,0.19900108,118970.0,118960.0,3.13906688]
[1753782522070,0.29900108,118970.0,118960.0,3.13906688]
[1753782522270,0.68707037,118970.0,118960.0,2.0529655]
[1753782522565,0.68707037,118970.0,118960.0,2.7023727]
[1753782522770,0.68707037,118970.0,118960.0,1.86808]
[1753782522971,0.68707037,118970.0,118960.0,2.7023727]
[1753782523470,0.68707037,118970.0,118960.0,2.91232339]
[1753782523671,0.68707037,118970.0,118960.0,2.7023727]
[1753782523859,0.68707037,118970.0,118960.0,2.91232339]
[1753782524170,0.68707037,118970.0,118960.0,2.7023727]
[1753782524171,0.68807037,118970.0,118960.0,2.7023727]
[1753782524371,0.68807037,118970.0,118960.0,2.7013727]
[1753782524571,0.68907037,118970.0,118960.0,2.7013727]
[1753782524778,0.85719037,118970.0,118960.0,2.7013727]
[1753782526067,0.64723968,118970.0,118960.0,2.7013727]
[1753782526272,0.85719037,118970.0,118960.0,2.7013727]
[1753782526467,0.85719037,118970.0,118960.0,2.2598727]
[1753782526671,0.68907037,118970.0,118960.0,2.2598727]
[1753782528371,0.85719037,118970.0,118960.0,2.2598727]
[1753782528769,1.10719037,118970.0,118960.0,2.2599527]
[1753782531373,0.85719037,118970.0,118960.0,2.2599527]
[1753782531573,0.865427,118970.0,118960.0,2.2599527]
[1753782532078,1.115427,118970.0,118960.0,2.2599527]
[1753782532275,0.865427,118970.0,118960.0,2.2599527]
[1753782533372,0.865427,118970.0,118960.0,1.82892]
[1753782533569,1.32537769,118970.0,118960.0,0.66624]
[1753782533770,0.3125727,118960.0,118950.0,0.2629]
[1753782533972,0.89369624,118960.0,118950.0,1.0973259]
[1753782534172,1.31182424,118960.0,118950.0,1.0973259]
[1753782535372,1.06182424,118960.0,118950.0,1.0973259]
[1753782536479,1.06182424,118960.0,118950.0,0.4310459]
[1753782536679,1.06182424,118960.0,118950.0,1.0973659]
[1753782536974,1.06182424,118960.0,118950.0,0.92922]
[1753782537278,1.06282424,118960.0,118950.0,0.92922]
[1753782537478,1.06382424,118960.0,118950.0,0.92922]
[1753782538378,1.06382424,118960.0,118950.0,0.66632]
[1753782538976,1.06382424,118960.0,118950.0,0.8344669]
[1753782539176,1.06382424,118960.0,118950.0,0.66632]
[1753782539379,1.06382424,118960.0,118950.0,0.8344669]
[1753782541280,1.06382424,118960.0,118950.0,0.8556869]
[1753782542881,0.64392286,118960.0,118950.0,0.8556869]
[1753782543082,1.06382424,118960.0,118950.0,0.8556869]
[1753782544178,0.89569624,118960.0,118950.0,0.8556869]
[1753782544383,1.06382424,118960.0,118950.0,0.8556869]
[1753782545385,1.06395592,118960.0,118950.0,0.8556869]
[1753782546796,1.06395592,118960.0,118950.0,0.68754]
[1753782546986,1.06395592,118960.0,118950.0,0.66632]
[1753782547475,1.27390661,118960.0,118950.0,0.66632]
[1753782547678,1.06395592,118960.0,118950.0,0.66632]
[1753782547878,1.1243375,118960.0,118950.0,0.66632]
[1753782550096,1.1243375,118960.0,118950.0,0.8344668]
[1753782550794,0.9562095,118960.0,118950.0,0.8344668]
[1753782552201,0.9562095,118960.0,118950.0,0.66632]
[1753782553299,0.89582792,118960.0,118950.0,0.66632]
[1753782553503,0.89582792,118960.0,118950.0,0.8344668]
[1753782554090,0.89582792,118960.0,118950.0,0.66632]
[1753782554296,0.97130489,118960.0,118950.0,0.66632]
[1753782555001,0.97130489,118960.0,118950.0,0.8344668]
[1753782555299,0.89582792,118960.0,118950.0,0.8344668]
[1753782555796,0.89582792,118960.0,118950.0,0.66632]
[1753782556196,0.89582792,118960.0,118950.0,0.8344669]
[1753782556797,0.89582792,118960.0,118950.0,0.8590969]
[1753782557792,0.89582792,118960.0,118950.0,0.69095]
[1753782560596,0.89582792,118960.0,118950.0,0.8590968]
[1753782563900,0.95624439,118960.0,118950.0,0.8590968]
[1753782567706,0.95624439,118960.0,118950.0,0.69095]
[1753782568104,0.95624439,118960.0,118950.0,0.8590968]
[1753782568304,0.89582792,118960.0,118950.0,0.8590968]
[1753782569307,0.89582792,118960.0,118950.0,0.69095]
[1753782570008,0.89582792,118960.0,118950.0,0.8590968]
[1753782571712,0.89582792,118960.0,118950.0,0.8590968]
[1753782572610,0.78582792,118960.0,118950.0,0.8590968]
[1753782572805,0.90582792,118960.0,118950.0,0.8590968]
[1753782573810,0.90599188,118960.0,118950.0,0.8590968]
[1753782576116,0.89599188,118960.0,118950.0,0.8590968]
[1753782578818,0.95640835,118960.0,118950.0,0.8590968]
[1753782581619,0.89599188,118960.0,118950.0,0.8815868]
[1753782584220,0.89599188,118960.0,118950.0,0.8590968]
[1753782584817,0.89599188,118960.0,118950.0,0.69095]
[1753782585023,0.3527568,118950.0,118940.0,0.453591]
[1753782585323,0.168161,118940.0,118930.0,0.4956349]
[1753782585531,0.90200018,118940.0,118930.0,0.95183]
[1753782586824,0.90200018,118940.0,118930.0,1.1200051]
[1753782588225,0.90200018,118940.0,118930.0,1.1210051]
[1753782588624,0.90200018,118940.0,118930.0,0.8581051]
[1753782592028,0.90200018,118940.0,118930.0,0.8796551]
[1753782597324,0.90200018,118940.0,118930.0,0.8581051]